[Event "Titled Tuesday Blitz January 18 2022"]
[White "Sviridov, Valery"]
[Black "Czopor, Maciej"]
[WhiteFideId "4120680"]
[BlackFideId "21805431"]
[WhiteElo "2954"]
[BlackElo "2615"]
[Result "1-0"]
[Round "02"]
[TimeControl "180+1"]
[Date "2022.01.18"]
[WhiteClock "0:02:08"]
[BlackClock "0:00:19"]

1. Nf3 {[%clk 0:03:00]}  Nf6 {[%clk 0:02:59]} 2. g3 {[%clk 0:03:01]}  g6 {[%clk 0:02:58]} 3. Bg2 {[%clk 0:03:01]}  Bg7 {[%clk 0:02:58]} 4. O-O {[%clk 0:03:01]}  O-O {[%clk 0:02:59]} 5. c4 {[%clk 0:03:02]}  c6 {[%clk 0:02:58]} 6. Nc3 {[%clk 0:03:01]}  d5 {[%clk 0:02:58]} 7. cxd5 {[%clk 0:03:01]}  cxd5 {[%clk 0:02:59]} 8. d4 {[%clk 0:03:01]}  Nc6 {[%clk 0:02:53]} 9. Ne5 {[%clk 0:03:01]}  Bf5 {[%clk 0:02:49]} 10. Nxc6 {[%clk 0:03:00]}  bxc6 {[%clk 0:02:50]} 11. Bf4 {[%clk 0:03:01]}  Ne4 {[%clk 0:02:45]} 12. Nxe4 {[%clk 0:03:00]}  Bxe4 {[%clk 0:02:45]} 13. Bxe4 {[%clk 0:03:00]}  dxe4 {[%clk 0:02:45]} 14. Be3 {[%clk 0:03:01]}  Qd5 {[%clk 0:02:43]} 15. Qa4 {[%clk 0:03:00]}  Rab8 {[%clk 0:02:29]} 16. b3 {[%clk 0:02:43]}  c5 {[%clk 0:02:24]} 17. Rad1 {[%clk 0:02:41]}  cxd4 {[%clk 0:02:19]} 18. Bxd4 {[%clk 0:02:42]}  Rfd8 {[%clk 0:01:40]} 19. Bxa7 {[%clk 0:02:25]}  Qxd1 {[%clk 0:01:41]} 20. Rxd1 {[%clk 0:02:25]}  Rxd1+ {[%clk 0:01:41]} 21. Kg2 {[%clk 0:02:26]}  Rc8 {[%clk 0:01:40]} 22. Qxe4 {[%clk 0:02:26]}  Rd7 {[%clk 0:01:31]} 23. Be3 {[%clk 0:02:25]}  e5 {[%clk 0:01:26]} 24. g4 {[%clk 0:02:20]}  h6 {[%clk 0:01:03]} 25. a4 {[%clk 0:02:18]}  Rc3 {[%clk 0:00:56]} 26. Qb4 {[%clk 0:02:14]}  Rc2 {[%clk 0:00:47]} 27. a5 {[%clk 0:02:14]}  Bf8 {[%clk 0:00:32]} 28. Qb5 {[%clk 0:02:14]}  Rd1 {[%clk 0:00:20]} 29. a6 {[%clk 0:02:13]}  Ra2 {[%clk 0:00:20]} 30. a7 {[%clk 0:02:12]}  Ra3 {[%clk 0:00:19]} 31. Qe8 {[%clk 0:02:08]} 1-0


[Site "https://www.chess.com"]

[Event "Titled Tuesday Blitz January 18 2022"]
[White "Tristan, Leonardo"]
[Black "Przybylski, Wojciech"]
[WhiteFideId "113816"]
[BlackFideId "1117599"]
[WhiteElo "2404"]
[BlackElo "2133"]
[Result "1-0"]
[Round "02"]
[TimeControl "180+1"]
[Date "2022.01.18"]
[WhiteClock "0:00:16"]
[BlackClock "0:00:05"]

1. d4 {[%clk 0:03:00]}  Nf6 {[%clk 0:02:58]} 2. Nf3 {[%clk 0:03:01]}  d5 {[%clk 0:02:57]} 3. Bf4 {[%clk 0:03:01]}  c6 {[%clk 0:02:56]} 4. e3 {[%clk 0:03:00]}  Bg4 {[%clk 0:02:54]} 5. c4 {[%clk 0:03:00]}  e6 {[%clk 0:02:53]} 6. Nc3 {[%clk 0:03:00]}  Nbd7 {[%clk 0:02:53]} 7. Qb3 {[%clk 0:03:00]}  Qb6 {[%clk 0:02:52]} 8. c5 {[%clk 0:03:00]}  Qxb3 {[%clk 0:02:52]} 9. axb3 {[%clk 0:03:01]}  Be7 {[%clk 0:02:45]} 10. Nd2 {[%clk 0:02:47]}  a6 {[%clk 0:02:41]} 11. h3 {[%clk 0:02:44]}  Bf5 {[%clk 0:02:41]} 12. b4 {[%clk 0:02:45]}  O-O {[%clk 0:02:13]} 13. Nb3 {[%clk 0:02:44]}  Ne4 {[%clk 0:02:04]} 14. Na5 {[%clk 0:02:37]}  Nxc3 {[%clk 0:02:00]} 15. bxc3 {[%clk 0:02:37]}  Ra7 {[%clk 0:01:59]} 16. Kd2 {[%clk 0:02:17]}  f6 {[%clk 0:01:58]} 17. Be2 {[%clk 0:02:13]}  e5 {[%clk 0:01:57]} 18. Bh2 {[%clk 0:02:14]}  Re8 {[%clk 0:01:53]} 19. Rhe1 {[%clk 0:02:12]}  Bd8 {[%clk 0:01:50]} 20. Bf1 {[%clk 0:02:11]}  Bc7 {[%clk 0:01:46]} 21. c4 {[%clk 0:02:10]}  Be6 {[%clk 0:01:37]} 22. f3 {[%clk 0:01:50]}  Rd8 {[%clk 0:01:33]} 23. Kc2 {[%clk 0:01:32]}  Bb8 {[%clk 0:01:30]} 24. cxd5 {[%clk 0:01:28]}  Bxd5 {[%clk 0:01:25]} 25. Bc4 {[%clk 0:01:17]}  Kf7 {[%clk 0:01:15]} 26. Kb3 {[%clk 0:01:13]}  Nf8 {[%clk 0:00:50]} 27. dxe5 {[%clk 0:00:46]}  Bxe5 {[%clk 0:00:48]} 28. Bxe5 {[%clk 0:00:45]}  fxe5 {[%clk 0:00:48]} 29. Rad1 {[%clk 0:00:38]}  Ne6 {[%clk 0:00:43]} 30. Kc3 {[%clk 0:00:39]}  Ke7 {[%clk 0:00:23]} 31. e4 {[%clk 0:00:35]}  Bxc4 {[%clk 0:00:22]} 32. Rxd8 {[%clk 0:00:32]}  Nxd8 {[%clk 0:00:14]} 33. Nxc4 {[%clk 0:00:33]}  a5 {[%clk 0:00:05]} 34. bxa5 {[%clk 0:00:29]}  Ne6 {[%clk 0:00:04]} 35. Kb4 {[%clk 0:00:28]}  Nd4 {[%clk 0:00:04]} 36. Rc1 {[%clk 0:00:24]}  Ke6 {[%clk 0:00:04]} 37. Rc3 {[%clk 0:00:16]}  Ra8 {[%clk 0:00:03]} 38. Nd6 {[%clk 0:00:17]}  Rb8 {[%clk 0:00:04]} 39. Kc4 {[%clk 0:00:16]}  g5 {[%clk 0:00:03]} 40. Rc1 {[%clk 0:00:16]}  Ra8 {[%clk 0:00:02]} 41. Nxb7 {[%clk 0:00:16]}  Ra7 {[%clk 0:00:03]} 42. Rb1 {[%clk 0:00:16]}  Nc2 {[%clk 0:00:02]} 43. Rb6 {[%clk 0:00:16]}  Ne3+ {[%clk 0:00:02]} 44. Kb4 {[%clk 0:00:15]}  Nxg2 {[%clk 0:00:03]} 45. Rxc6+ {[%clk 0:00:15]}  Kd7 {[%clk 0:00:03]} 46. Rb6 {[%clk 0:00:15]}  Kc7 {[%clk 0:00:03]} 47. Nd6 {[%clk 0:00:15]}  Nf4 {[%clk 0:00:03]} 48. Nb5+ {[%clk 0:00:15]}  Kd7 {[%clk 0:00:03]} 49. Nxa7 {[%clk 0:00:16]}  Ne6 {[%clk 0:00:04]} 50. Rxe6 {[%clk 0:00:16]}  Kxe6 {[%clk 0:00:04]} 51. Kb5 {[%clk 0:00:15]}  Kd7 {[%clk 0:00:05]} 52. Kb6 {[%clk 0:00:16]} 1-0


[Site "https://www.chess.com"]

[Event "Titled Tuesday Blitz January 18 2022"]
[White "Visakh N R"]
[Black "Klenburg, Michael"]
[WhiteFideId "25012223"]
[BlackFideId "14102072"]
[WhiteElo "2454"]
[BlackElo "2359"]
[Result "0-1"]
[Round "02"]
[TimeControl "180+1"]
[Date "2022.01.18"]
[WhiteClock "0:00:17"]
[BlackClock "0:00:33"]

1. d4 {[%clk 0:03:00]}  d6 {[%clk 0:02:59]} 2. e4 {[%clk 0:02:58]}  Nf6 {[%clk 0:02:59]} 3. Nc3 {[%clk 0:02:58]}  g6 {[%clk 0:02:59]} 4. g3 {[%clk 0:02:58]}  Bg7 {[%clk 0:02:59]} 5. Bg2 {[%clk 0:02:58]}  O-O {[%clk 0:02:59]} 6. Nge2 {[%clk 0:02:58]}  e5 {[%clk 0:02:59]} 7. O-O {[%clk 0:02:58]}  c6 {[%clk 0:02:58]} 8. h3 {[%clk 0:02:57]}  b5 {[%clk 0:02:54]} 9. a3 {[%clk 0:02:56]}  a6 {[%clk 0:02:53]} 10. f4 {[%clk 0:02:53]}  exd4 {[%clk 0:02:52]} 11. Nxd4 {[%clk 0:02:53]}  Bb7 {[%clk 0:02:52]} 12. Be3 {[%clk 0:02:49]}  Nbd7 {[%clk 0:02:51]} 13. Kh2 {[%clk 0:02:40]}  Re8 {[%clk 0:02:51]} 14. Bg1 {[%clk 0:02:21]}  Qc7 {[%clk 0:02:48]} 15. Qd2 {[%clk 0:02:20]}  c5 {[%clk 0:02:44]} 16. Nb3 {[%clk 0:02:07]}  Nxe4 {[%clk 0:02:38]} 17. Nxe4 {[%clk 0:02:06]}  Bxe4 {[%clk 0:02:38]} 18. Bxe4 {[%clk 0:02:06]}  Rxe4 {[%clk 0:02:38]} 19. Rad1 {[%clk 0:02:06]}  Bf8 {[%clk 0:02:18]} 20. Rfe1 {[%clk 0:01:44]}  Rae8 {[%clk 0:02:17]} 21. Rxe4 {[%clk 0:01:40]}  Rxe4 {[%clk 0:02:17]} 22. Re1 {[%clk 0:01:41]}  Rxe1 {[%clk 0:02:09]} 23. Qxe1 {[%clk 0:01:40]}  Nf6 {[%clk 0:01:57]} 24. Nd2 {[%clk 0:01:34]}  Qc6 {[%clk 0:01:43]} 25. c4 {[%clk 0:01:31]}  d5 {[%clk 0:01:35]} 26. cxd5 {[%clk 0:01:28]}  Qxd5 {[%clk 0:01:31]} 27. Nf1 {[%clk 0:01:24]}  c4 {[%clk 0:01:24]} 28. Ne3 {[%clk 0:01:03]}  Qd3 {[%clk 0:01:22]} 29. Ng2 {[%clk 0:00:54]}  Ne4 {[%clk 0:01:19]} 30. Be3 {[%clk 0:00:50]}  Qc2 {[%clk 0:01:13]} 31. Qa5 {[%clk 0:00:46]}  Qxb2 {[%clk 0:01:06]} 32. Qxa6 {[%clk 0:00:43]}  Nd2 {[%clk 0:00:51]} 33. h4 {[%clk 0:00:21]}  Nf1+ {[%clk 0:00:37]} 34. Kh3 {[%clk 0:00:21]}  Nxe3 {[%clk 0:00:37]} 35. Nxe3 {[%clk 0:00:21]}  Qxa3 {[%clk 0:00:37]} 36. Qb6 {[%clk 0:00:17]}  Qc5 {[%clk 0:00:33]} 0-1


[Site "https://www.chess.com"]

[Event "Titled Tuesday Blitz January 18 2022"]
[White "Wagner, Dennis"]
[Black "Gracia Alvarez, Gerardo Antonio"]
[WhiteFideId "24650684"]
[BlackFideId "5109124"]
[WhiteElo "2355"]
[BlackElo "2139"]
[Result "1-0"]
[Round "02"]
[TimeControl "180+1"]
[Date "2022.01.18"]
[WhiteClock "0:01:22"]
[BlackClock "0:00:47"]

1. d4 {[%clk 0:02:59]}  Nf6 {[%clk 0:02:59]} 2. Nf3 {[%clk 0:02:58]}  g6 {[%clk 0:02:58]} 3. c4 {[%clk 0:02:54]}  c5 {[%clk 0:02:56]} 4. d5 {[%clk 0:02:51]}  b5 {[%clk 0:02:56]} 5. cxb5 {[%clk 0:02:39]}  a6 {[%clk 0:02:55]} 6. bxa6 {[%clk 0:02:39]}  Bg7 {[%clk 0:02:50]} 7. Nc3 {[%clk 0:02:39]}  Bxa6 {[%clk 0:02:49]} 8. e4 {[%clk 0:02:39]}  Bxf1 {[%clk 0:02:49]} 9. Kxf1 {[%clk 0:02:39]}  d6 {[%clk 0:02:49]} 10. g3 {[%clk 0:02:40]}  O-O {[%clk 0:02:50]} 11. Kg2 {[%clk 0:02:41]}  Qb6 {[%clk 0:02:50]} 12. Qe2 {[%clk 0:02:24]}  Na6 {[%clk 0:02:49]} 13. Nd2 {[%clk 0:02:16]}  Nc7 {[%clk 0:02:48]} 14. Nc4 {[%clk 0:02:12]}  Qa6 {[%clk 0:02:46]} 15. a4 {[%clk 0:02:12]}  Rfb8 {[%clk 0:02:45]} 16. Ra3 {[%clk 0:02:02]}  Nd7 {[%clk 0:02:30]} 17. Bd2 {[%clk 0:01:51]}  Nb6 {[%clk 0:01:39]} 18. b3 {[%clk 0:01:50]}  e6 {[%clk 0:00:55]} 19. dxe6 {[%clk 0:01:34]}  Nxe6 {[%clk 0:00:56]} 20. Nxd6 {[%clk 0:01:34]}  Bxc3 {[%clk 0:00:45]} 21. Qxa6 {[%clk 0:01:33]}  Rxa6 {[%clk 0:00:46]} 22. Bxc3 {[%clk 0:01:34]}  Nxa4 {[%clk 0:00:45]} 23. bxa4 {[%clk 0:01:30]}  Rxd6 {[%clk 0:00:45]} 24. Be5 {[%clk 0:01:30]}  Rdb6 {[%clk 0:00:45]} 25. Bxb8 {[%clk 0:01:28]}  Rxb8 {[%clk 0:00:46]} 26. a5 {[%clk 0:01:26]}  Ra8 {[%clk 0:00:46]} 27. a6 {[%clk 0:01:25]}  Ra7 {[%clk 0:00:47]} 28. Rb1 {[%clk 0:01:22]} 1-0


[Site "https://www.chess.com"]

[Event "Titled Tuesday Blitz January 18 2022"]
[White "Wong, Yinn Long"]
[Black "Budrewicz, Krzysztof"]
[WhiteFideId "5707684"]
[BlackFideId "1127950"]
[WhiteElo "2055"]
[BlackElo "2248"]
[Result "1-0"]
[Round "02"]
[TimeControl "180+1"]
[Date "2022.01.18"]
[WhiteClock "0:00:10"]
[BlackClock "0:00:02"]

1. d4 {[%clk 0:03:00]}  Nf6 {[%clk 0:02:59]} 2. Bf4 {[%clk 0:03:00]}  g6 {[%clk 0:02:58]} 3. Nc3 {[%clk 0:03:00]}  Bg7 {[%clk 0:02:56]} 4. e4 {[%clk 0:03:00]}  d6 {[%clk 0:02:56]} 5. Qd2 {[%clk 0:03:01]}  O-O {[%clk 0:02:56]} 6. O-O-O {[%clk 0:03:01]}  a6 {[%clk 0:02:55]} 7. h4 {[%clk 0:02:52]}  Nc6 {[%clk 0:02:53]} 8. d5 {[%clk 0:02:46]}  Ne5 {[%clk 0:02:52]} 9. f3 {[%clk 0:02:38]}  h5 {[%clk 0:02:48]} 10. Bh6 {[%clk 0:02:33]}  c5 {[%clk 0:02:45]} 11. dxc6 {[%clk 0:02:30]}  bxc6 {[%clk 0:02:44]} 12. Bxg7 {[%clk 0:02:29]}  Kxg7 {[%clk 0:02:43]} 13. f4 {[%clk 0:02:20]}  Neg4 {[%clk 0:02:41]} 14. e5 {[%clk 0:02:20]}  Ne8 {[%clk 0:02:35]} 15. exd6 {[%clk 0:01:47]}  exd6 {[%clk 0:02:31]} 16. Nf3 {[%clk 0:01:44]}  Qb6 {[%clk 0:02:28]} 17. Qd4+ {[%clk 0:01:17]}  Qxd4 {[%clk 0:02:27]} 18. Rxd4 {[%clk 0:01:18]}  d5 {[%clk 0:02:15]} 19. Be2 {[%clk 0:01:09]}  Be6 {[%clk 0:02:15]} 20. Ng5 {[%clk 0:01:05]}  Nh6 {[%clk 0:02:09]} 21. Rd2 {[%clk 0:00:47]}  Nd6 {[%clk 0:01:57]} 22. Bd3 {[%clk 0:00:46]}  Rfe8 {[%clk 0:01:53]} 23. Na4 {[%clk 0:00:42]}  a5 {[%clk 0:01:51]} 24. Nc5 {[%clk 0:00:31]}  Bf5 {[%clk 0:01:51]} 25. Bxf5 {[%clk 0:00:27]}  Nhxf5 {[%clk 0:01:46]} 26. Nd3 {[%clk 0:00:27]}  f6 {[%clk 0:01:45]} 27. Nf3 {[%clk 0:00:27]}  Re4 {[%clk 0:01:40]} 28. Re1 {[%clk 0:00:25]}  Rae8 {[%clk 0:01:37]} 29. Rdd1 {[%clk 0:00:26]}  Nc4 {[%clk 0:01:30]} 30. b3 {[%clk 0:00:17]}  Nce3 {[%clk 0:01:26]} 31. Rd2 {[%clk 0:00:17]}  Ng4 {[%clk 0:01:19]} 32. Rdd1 {[%clk 0:00:13]}  Kf7 {[%clk 0:01:13]} 33. Kb2 {[%clk 0:00:13]}  R8e7 {[%clk 0:01:10]} 34. Ka3 {[%clk 0:00:12]}  Ra7 {[%clk 0:00:51]} 35. Kb2 {[%clk 0:00:12]}  a4 {[%clk 0:00:51]} 36. Nd2 {[%clk 0:00:10]}  a3+ {[%clk 0:00:43]} 37. Kc3 {[%clk 0:00:09]}  Ree7 {[%clk 0:00:36]} 38. Nf3 {[%clk 0:00:06]}  Ng3 {[%clk 0:00:25]} 39. Nb4 {[%clk 0:00:06]}  Ne4+ {[%clk 0:00:25]} 40. Kd3 {[%clk 0:00:04]}  Rac7 {[%clk 0:00:23]} 41. Rc1 {[%clk 0:00:03]}  Red7 {[%clk 0:00:23]} 42. c4 {[%clk 0:00:03]}  Ngf2+ {[%clk 0:00:20]} 43. Kc2 {[%clk 0:00:03]}  dxc4 {[%clk 0:00:20]} 44. bxc4 {[%clk 0:00:04]}  Rb7 {[%clk 0:00:16]} 45. Rb1 {[%clk 0:00:04]}  c5 {[%clk 0:00:15]} 46. Nd5 {[%clk 0:00:04]}  Rxb1 {[%clk 0:00:16]} 47. Rxb1 {[%clk 0:00:05]}  Ng4 {[%clk 0:00:14]} 48. Nd2 {[%clk 0:00:06]}  Nxd2 {[%clk 0:00:13]} 49. Kxd2 {[%clk 0:00:07]}  Nh6 {[%clk 0:00:11]} 50. Rb6 {[%clk 0:00:07]}  Nf5 {[%clk 0:00:10]} 51. Rxf6+ {[%clk 0:00:07]}  Kg7 {[%clk 0:00:10]} 52. Rc6 {[%clk 0:00:07]}  Nxh4 {[%clk 0:00:10]} 53. Rxc5 {[%clk 0:00:07]}  Nxg2 {[%clk 0:00:10]} 54. Ke2 {[%clk 0:00:06]}  Rb7 {[%clk 0:00:10]} 55. Rb5 {[%clk 0:00:06]}  Rf7 {[%clk 0:00:10]} 56. Kf3 {[%clk 0:00:05]}  Nh4+ {[%clk 0:00:10]} 57. Ke4 {[%clk 0:00:06]}  Ng2 {[%clk 0:00:09]} 58. c5 {[%clk 0:00:06]}  h4 {[%clk 0:00:09]} 59. c6 {[%clk 0:00:06]}  h3 {[%clk 0:00:09]} 60. Rb3 {[%clk 0:00:06]}  h2 {[%clk 0:00:07]} 61. Rh3 {[%clk 0:00:07]}  g5 {[%clk 0:00:03]} 62. fxg5 {[%clk 0:00:04]}  Ne1 {[%clk 0:00:03]} 63. Rxh2 {[%clk 0:00:04]}  Rf8 {[%clk 0:00:02]} 64. c7 {[%clk 0:00:04]}  Re8+ {[%clk 0:00:02]} 65. Kf5 {[%clk 0:00:04]}  Nf3 {[%clk 0:00:02]} 66. Rf2 {[%clk 0:00:04]}  Nd4+ {[%clk 0:00:02]} 67. Kg4 {[%clk 0:00:04]}  Ne6 {[%clk 0:00:02]} 68. Rf6 {[%clk 0:00:04]}  Nxc7 {[%clk 0:00:02]} 69. Nxc7 {[%clk 0:00:05]}  Re4+ {[%clk 0:00:02]} 70. Rf4 {[%clk 0:00:05]}  Re2 {[%clk 0:00:03]} 71. Nd5 {[%clk 0:00:06]}  Rxa2 {[%clk 0:00:03]} 72. Ra4 {[%clk 0:00:06]}  Rg2+ {[%clk 0:00:03]} 73. Kf5 {[%clk 0:00:06]}  a2 {[%clk 0:00:03]} 74. Nf4 {[%clk 0:00:07]}  Rg1 {[%clk 0:00:03]} 75. Ra7+ {[%clk 0:00:08]}  Kg8 {[%clk 0:00:03]} 76. g6 {[%clk 0:00:09]}  a1=Q {[%clk 0:00:02]} 77. Re7 {[%clk 0:00:09]}  Qa5+ {[%clk 0:00:02]} 78. Kf6 {[%clk 0:00:10]}  Qb6+ {[%clk 0:00:02]} 79. Re6 {[%clk 0:00:10]}  Qd8+ {[%clk 0:00:02]} 80. Re7 {[%clk 0:00:10]}  Re1 {[%clk 0:00:02]} 81. Ne6 {[%clk 0:00:10]} 1-0


[Site "https://www.chess.com"]

[Event "Titled Tuesday Blitz January 18 2022"]
[White "Yang, Kaiqi"]
[Black "Salinas Herrera, Pablo"]
[WhiteFideId "8604398"]
[BlackFideId "3407128"]
[WhiteElo "2373"]
[BlackElo "2541"]
[Result "1/2-1/2"]
[Round "02"]
[TimeControl "180+1"]
[Date "2022.01.18"]
[WhiteClock "0:00:05"]
[BlackClock "0:00:04"]

1. c4 {[%clk 0:03:00]}  c6 {[%clk 0:02:58]} 2. d4 {[%clk 0:02:57]}  d5 {[%clk 0:02:58]} 3. cxd5 {[%clk 0:02:57]}  cxd5 {[%clk 0:02:58]} 4. Bf4 {[%clk 0:02:58]}  Nc6 {[%clk 0:02:58]} 5. e3 {[%clk 0:02:58]}  Bf5 {[%clk 0:02:57]} 6. Nc3 {[%clk 0:02:57]}  e6 {[%clk 0:02:57]} 7. Qb3 {[%clk 0:02:51]}  Bb4 {[%clk 0:02:41]} 8. Bb5 {[%clk 0:02:45]}  Bxc3+ {[%clk 0:02:40]} 9. Qxc3 {[%clk 0:02:35]}  Ne7 {[%clk 0:02:40]} 10. Nf3 {[%clk 0:02:33]}  O-O {[%clk 0:02:40]} 11. O-O {[%clk 0:02:33]}  Qb6 {[%clk 0:02:40]} 12. Be2 {[%clk 0:02:14]}  Rfc8 {[%clk 0:02:35]} 13. Rfc1 {[%clk 0:02:06]}  h6 {[%clk 0:02:19]} 14. Qd2 {[%clk 0:01:50]}  Be4 {[%clk 0:02:15]} 15. h3 {[%clk 0:01:44]}  a5 {[%clk 0:02:07]} 16. Rc3 {[%clk 0:01:40]}  a4 {[%clk 0:02:04]} 17. Rac1 {[%clk 0:01:40]}  Na5 {[%clk 0:01:55]} 18. Bc7 {[%clk 0:01:35]}  Rxc7 {[%clk 0:01:12]} 19. Rxc7 {[%clk 0:01:34]}  Nac6 {[%clk 0:01:08]} 20. Rd7 {[%clk 0:01:30]}  Bxf3 {[%clk 0:01:08]} 21. Bxf3 {[%clk 0:01:21]}  Kf8 {[%clk 0:01:02]} 22. e4 {[%clk 0:01:08]}  Ke8 {[%clk 0:00:41]} 23. Rd6 {[%clk 0:01:05]}  Qc7 {[%clk 0:00:38]} 24. e5 {[%clk 0:01:00]}  Qb6 {[%clk 0:00:38]} 25. Rc5 {[%clk 0:00:47]}  Nf5 {[%clk 0:00:36]} 26. Rdxc6 {[%clk 0:00:33]}  bxc6 {[%clk 0:00:37]} 27. Qc3 {[%clk 0:00:33]}  Kd7 {[%clk 0:00:36]} 28. Bg4 {[%clk 0:00:33]}  Ne7 {[%clk 0:00:34]} 29. Bd1 {[%clk 0:00:33]}  g6 {[%clk 0:00:30]} 30. g4 {[%clk 0:00:30]}  Rb8 {[%clk 0:00:24]} 31. b3 {[%clk 0:00:29]}  axb3 {[%clk 0:00:25]} 32. Bxb3 {[%clk 0:00:28]}  Ra8 {[%clk 0:00:24]} 33. Kg2 {[%clk 0:00:28]}  h5 {[%clk 0:00:24]} 34. Qc2 {[%clk 0:00:27]}  hxg4 {[%clk 0:00:24]} 35. hxg4 {[%clk 0:00:28]}  Qb4 {[%clk 0:00:24]} 36. Qc3 {[%clk 0:00:26]}  Qa3 {[%clk 0:00:18]} 37. Qf3 {[%clk 0:00:21]}  Ke8 {[%clk 0:00:18]} 38. Qc3 {[%clk 0:00:20]}  Ra7 {[%clk 0:00:17]} 39. Qc2 {[%clk 0:00:16]}  Ra5 {[%clk 0:00:15]} 40. Rc3 {[%clk 0:00:14]}  Qb4 {[%clk 0:00:15]} 41. Qd3 {[%clk 0:00:14]}  Kd7 {[%clk 0:00:15]} 42. Kg3 {[%clk 0:00:13]}  Ra7 {[%clk 0:00:14]} 43. f3 {[%clk 0:00:13]}  Ra5 {[%clk 0:00:14]} 44. Qc2 {[%clk 0:00:14]}  Qxd4 {[%clk 0:00:13]} 45. Rd3 {[%clk 0:00:14]}  Qxe5+ {[%clk 0:00:14]} 46. f4 {[%clk 0:00:14]}  Qd6 {[%clk 0:00:14]} 47. Qc3 {[%clk 0:00:13]}  Ra7 {[%clk 0:00:12]} 48. Qf6 {[%clk 0:00:13]}  Ke8 {[%clk 0:00:12]} 49. Rd1 {[%clk 0:00:13]}  Qc5 {[%clk 0:00:11]} 50. Rh1 {[%clk 0:00:12]}  Qe3+ {[%clk 0:00:11]} 51. Kg2 {[%clk 0:00:12]}  Qe4+ {[%clk 0:00:11]} 52. Kg1 {[%clk 0:00:12]}  Qe1+ {[%clk 0:00:11]} 53. Kg2 {[%clk 0:00:13]}  Qd2+ {[%clk 0:00:11]} 54. Kg3 {[%clk 0:00:12]}  Qe3+ {[%clk 0:00:11]} 55. Kg2 {[%clk 0:00:13]}  Qe4+ {[%clk 0:00:08]} 56. Kg1 {[%clk 0:00:13]}  c5 {[%clk 0:00:07]} 57. Rh8+ {[%clk 0:00:13]}  Kd7 {[%clk 0:00:08]} 58. Qxf7 {[%clk 0:00:13]}  Qd4+ {[%clk 0:00:08]} 59. Kg2 {[%clk 0:00:13]}  Qd2+ {[%clk 0:00:08]} 60. Kg3 {[%clk 0:00:13]}  Qe3+ {[%clk 0:00:08]} 61. Kg2 {[%clk 0:00:13]}  c4 {[%clk 0:00:09]} 62. Qe8+ {[%clk 0:00:12]}  Kd6 {[%clk 0:00:09]} 63. Qb8+ {[%clk 0:00:12]}  Kc6 {[%clk 0:00:08]} 64. Rd8 {[%clk 0:00:04]}  Qe2+ {[%clk 0:00:08]} 65. Kg3 {[%clk 0:00:04]}  Qe3+ {[%clk 0:00:08]} 66. Kg2 {[%clk 0:00:04]}  Qe2+ {[%clk 0:00:04]} 67. Kg3 {[%clk 0:00:04]}  Qe3+ {[%clk 0:00:04]} 68. Kg2 {[%clk 0:00:05]} 1/2-1/2


[Site "https://www.chess.com"]

[Event "Titled Tuesday Blitz January 18 2022"]
[White "Al Mukhaini, Shima"]
[Black "Concio, Michael Jr."]
[WhiteFideId "22005854"]
[BlackFideId "5217873"]
[WhiteElo "2365"]
[BlackElo "1896"]
[Result "0-1"]
[Round "03"]
[TimeControl "180+1"]
[Date "2022.01.18"]
[WhiteClock "0:00:04"]
[BlackClock "0:00:13"]

1. e4 {[%clk 0:03:00]}  c6 {[%clk 0:02:59]} 2. d4 {[%clk 0:03:00]}  d5 {[%clk 0:02:59]} 3. Nc3 {[%clk 0:03:01]}  g6 {[%clk 0:02:59]} 4. Nf3 {[%clk 0:03:00]}  h5 {[%clk 0:02:55]} 5. exd5 {[%clk 0:02:56]}  cxd5 {[%clk 0:02:55]} 6. Bb5+ {[%clk 0:02:56]}  Bd7 {[%clk 0:02:53]} 7. O-O {[%clk 0:02:53]}  Nf6 {[%clk 0:02:51]} 8. Bf4 {[%clk 0:02:44]}  Bg7 {[%clk 0:02:44]} 9. Ne5 {[%clk 0:02:44]}  O-O {[%clk 0:02:38]} 10. Nxd7 {[%clk 0:02:41]}  Nbxd7 {[%clk 0:02:39]} 11. Re1 {[%clk 0:02:36]}  a6 {[%clk 0:02:38]} 12. Bd3 {[%clk 0:02:34]}  Re8 {[%clk 0:02:38]} 13. Qd2 {[%clk 0:02:34]}  Qb6 {[%clk 0:02:34]} 14. Be3 {[%clk 0:02:19]}  Rac8 {[%clk 0:02:28]} 15. h3 {[%clk 0:02:12]}  Qc6 {[%clk 0:02:11]} 16. Bh6 {[%clk 0:02:01]}  Nb6 {[%clk 0:02:00]} 17. Bxg7 {[%clk 0:02:00]}  Kxg7 {[%clk 0:02:01]} 18. Re5 {[%clk 0:01:49]}  Nc4 {[%clk 0:01:48]} 19. Bxc4 {[%clk 0:01:49]}  Qxc4 {[%clk 0:01:48]} 20. Rae1 {[%clk 0:01:44]}  e6 {[%clk 0:01:38]} 21. Qd3 {[%clk 0:01:14]}  Qb4 {[%clk 0:01:09]} 22. Rb1 {[%clk 0:00:43]}  Rc4 {[%clk 0:00:50]} 23. Ne2 {[%clk 0:00:35]}  Rec8 {[%clk 0:00:49]} 24. c3 {[%clk 0:00:33]}  Qd6 {[%clk 0:00:37]} 25. f3 {[%clk 0:00:25]}  b5 {[%clk 0:00:33]} 26. a3 {[%clk 0:00:24]}  a5 {[%clk 0:00:23]} 27. Nf4 {[%clk 0:00:23]}  Nd7 {[%clk 0:00:22]} 28. Nxh5+ {[%clk 0:00:14]}  gxh5 {[%clk 0:00:20]} 29. Rxh5 {[%clk 0:00:15]}  Nf6 {[%clk 0:00:15]} 30. Rg5+ {[%clk 0:00:13]}  Kf8 {[%clk 0:00:16]} 31. Re1 {[%clk 0:00:10]}  Qf4 {[%clk 0:00:13]} 32. Qe3 {[%clk 0:00:05]}  Qxe3+ {[%clk 0:00:13]} 33. Rxe3 {[%clk 0:00:06]}  b4 {[%clk 0:00:14]} 34. axb4 {[%clk 0:00:06]}  axb4 {[%clk 0:00:15]} 35. cxb4 {[%clk 0:00:03]}  Rxd4 {[%clk 0:00:15]} 36. Rb3 {[%clk 0:00:03]}  Rb8 {[%clk 0:00:15]} 37. b5 {[%clk 0:00:04]}  Rc4 {[%clk 0:00:16]} 38. Rg3 {[%clk 0:00:02]}  Rc5 {[%clk 0:00:12]} 39. b6 {[%clk 0:00:03]}  Rc6 {[%clk 0:00:13]} 40. b7 {[%clk 0:00:03]}  Rc7 {[%clk 0:00:13]} 41. f4 {[%clk 0:00:04]}  Rcxb7 {[%clk 0:00:11]} 42. Rxb7 {[%clk 0:00:05]}  Rxb7 {[%clk 0:00:12]} 43. b3 {[%clk 0:00:04]}  Ne4 {[%clk 0:00:13]} 44. Re3 {[%clk 0:00:04]}  Nc5 {[%clk 0:00:13]} 0-1


[Site "https://www.chess.com"]